Cogmind - Beta 16.1 @@@ ROGUE MODE // 2026.03.05 @ 23:37:35 Player: Deloads Result: Self-destructed Performance ------------- Evolutions (5) 2500 Regions Visited (4) 800 Robots Destroyed (9) 45 Value Destroyed (279) 279 Prototype IDs (0) 0 Alien Tech Used (0) 0 Bonus (0) 0 TOTAL SCORE: 3624 Bonus ------- None Cogmind --------- Core Integrity 983/1000 Matter 292/300 Energy 250/250 System Corruption 0% Temperature Cool (0) Movement Rolling (115) Ox1 Location -5/Factory Parts ------- > --- POWER (2) -------- Ion Engine > --- PROPULSION (5) --- Compact Wheel > --- UTILITY (8) ------ Medium Storage Unit Seismic Detector > --- WEAPON (2) ------- Assault Rifle > --- INVENTORY (10) --- Subdweller Power Source Light Treads Light Treads Heat Sink Structural Scanner Medium Laser Assault Rifle Mining Laser Mining Laser Plasma Cutter Peak State ------------ > --- POWER ------------ Ion Engine > --- PROPULSION ------- Wheel Compact Wheel > --- UTILITY ---------- Medium Storage Unit Seismic Detector > --- WEAPON ----------- Assault Rifle Grenade Launcher > --- INVENTORY -------- Subdweller Power Source Light Treads Light Treads Heat Sink Structural Scanner Medium Laser Assault Rifle Mining Laser Mining Laser [Rating: 8] Favorites ----------- Power Ion Engine Engine Ion Engine Propulsion Compact Wheel Wheel Compact Wheel Utility Seismic Detector Device Seismic Detector Storage Medium Storage Unit Weapon Assault Rifle Energy Gun Medium Laser Ballistic Gun Assault Rifle Launcher Grenade Launcher Special Weapon Mining Laser Build | -11 -10 -10 -7 -5 ------- Run | Yrd Mat Sub Scr Fac Slots Evolved 10 | . . . . 10 Power 1 | . . . . 1 Propulsion 3 | . . . . 3 Utility 6 | . . . . 6 Weapon . | . . . . . Parts Attached 14 | 7 2 5 . . Power 2 | 1 . 1 . . Engine 2 | 1 . 1 . . Core . | . . . . . Reactor . | . . . . . Propulsion 3 | 2 1 . . . Treads . | . . . . . Leg . | . . . . . Wheel 3 | 2 1 . . . Hover . | . . . . . Flight . | . . . . . Utility 3 | 2 1 . . . Device 1 | 1 . . . . Storage 2 | 1 1 . . . Processor . | . . . . . Hackware . | . . . . . Protection . | . . . . . Artifact . | . . . . . Weapon 6 | 2 . 4 . . Energy Gun 1 | 1 . . . . Energy Cannon . | . . . . . Ballistic Gun 2 | 1 . 1 . . Ballistic Cannon . | . . . . . Launcher 1 | . . 1 . . Special Weapon 2 | . . 2 . . Impact Weapon . | . . . . . Slashing Weapon . | . . . . . Piercing Weapon . | . . . . . Special Melee Weapon . | . . . . . Unidentified Prototypes . | . . . . . Parts Lost 4 | . 1 1 . 2 Power 1 | . . 1 . . Propulsion 2 | . 1 . . 1 Utility . | . . . . . Weapon 1 | . . . . 1 Highest Loss Streak 2 | . 1 1 . 2 To Critical Strikes . | . . . . . Average Backups 8 | 4 8 8 9 10 Power 1 | . 1 . 1 1 Propulsion 2 | 2 2 2 2 2 Utility 1 | . 1 2 2 2 Weapon 3 | . 2 4 4 4 Tool/Special . | . . . . . Unused Backups 10 | . 4 . . 6 Power 2 | . 1 . . 1 Propulsion 4 | . 2 . . 2 Utility 2 | . . . . 2 Weapon 1 | . 1 . . . Tool/Special 1 | . . . . 1 Average Slot Usage (%) 97 | . 99 99 100 39 Engine 13 | . 14 13 14 5 Wheel 27 | . 27 28 28 9 Device 13 | . 14 14 14 5 Storage 13 | . 14 14 14 5 Energy Gun 6 | . 14 2 . . Ballistic Gun 13 | . 14 11 14 5 Launcher 6 | . . 8 14 5 Special Weapon 1 | . . 6 . . Peak Build Rating 8 | 7 7 8 8 8 Average Rating 7 | 5 6 7 8 7 On Entrance 6 | . 7 7 8 8 Avg Prop Armor Cover (%) . | . . . . . Naked Turns . | . . . . . Heaviest Build 21 | 13 18 21 21 21 Greatest Support 32 | 32 32 26 26 26 Greatest Overweight (x) 1 | . . . . 1 Average Overweight (x) . | . . . . . Largest Inventory Capacity 10 | 8 10 10 10 10 Average Capacity 9 | 7 9 10 10 10 Most Carried 10 | 8 9 9 10 10 Average Carried 8 | 4 8 8 9 10 Final Capacity 10 | 8 10 10 10 10 Final Carried 10 | 8 9 9 10 10 Class Distribution -------------------- 100% | Mutant Dominant Class ---------------- Mutant | -10/Materials Mutant | -10/Subcaves Mutant | -7/Scraptown Mutant | -5/Factory Resources | -11 -10 -10 -7 -5 ----------- Run | Yrd Mat Sub Scr Fac Matter Collected 446 | 256 83 78 29 . Remotely . | . . . . . Salvage Created 292 | 22 185 85 . . Parts 23 | 4 11 8 . . Haulers Intercepted . | . . . . . Recyclers Shooed . | . . . . . Parts Field Recycled . | . . . . . Retrieved Matter . | . . . . . Parts Self-Destructed . | . . . . . Prevented . | . . . . . Parts Restored . | . . . . . Kills | -11 -10 -10 -7 -5 ------- Run | Yrd Mat Sub Scr Fac Combat Hostiles Destroyed 7 | . 4 3 . . Guns 5 | . 4 1 . . Cannons 1 | . . 1 . . AOE 1 | . . 1 . . Classes Destroyed 4 | 1 2 1 . . Tunneler 1 | 1 . . . . Watcher 1 | . 1 . . . Grunt 4 | . 4 . . . Subdweller 3 | . . 3 . . Best Kill Streak 2 | 1 2 1 . . Combat Bots Only 2 | . 2 1 . . Max Kills in Single Turn 1 | 1 1 1 . . Gunslinging . | . . . . . Exploded 1 | . . 1 . . Melee . | . . . . . Uniques/NPCs Destroyed . | . . . . . Combat | -11 -10 -10 -7 -5 -------- Run | Yrd Mat Sub Scr Fac Hostile Shots Fired 63 | . 21 12 . 30 Missed 22 | . 5 6 . 11 Hits 41 | . 16 6 . 19 Projectile 41 | . 16 6 . 19 Critical Strikes 1 | . . . . 1 Damage Taken 571 | . 175 124 . 272 Core 80 | . 43 20 . 17 Absorbed by Shields . | . . . . . Regen/Repaired (Parts) 85 | . . . 85 . Core Remaining (%) 87 | 100 . . 74 . Volleys Fired 33 | 1 17 14 . 1 Largest 2 | 2 2 2 . 2 Hottest 200 | 70 70 200 . 50 Shots Fired 58 | 2 34 20 . 2 Gun 42 | 2 34 5 . 1 Cannon . | . . . . . Launcher 4 | . . 3 . 1 Special 12 | . . 12 . . Kinetic 23 | 1 17 4 . 1 Thermal 31 | 1 17 13 . . Explosive 4 | . . 3 . 1 Electromagnetic . | . . . . . Robot Hit Streak 10 | 2 10 7 . . Robot Miss Streak 6 | . 6 . . . Penetration Max . | . . . . . Secondary Targets 1 | . 1 . . . Max Gunslinging Chain 1 | . 1 . . . Shots Hit Robots 29 | 2 21 6 . . Core Hits 18 | 1 10 5 . 2 Critical Kills . | . . . . . Critical Parts Destroyed 1 | . 1 . . . Critical Strikes 2 | 1 1 . . . Burn 1 | 1 . . . . Destroy 1 | . 1 . . . Melee Attacks . | . . . . . Impact . | . . . . . Slashing . | . . . . . Piercing . | . . . . . Sneak Attacks . | . . . . . Combat Hostiles . | . . . . . Follow-up Attacks . | . . . . . Damage Inflicted 487 | 26 282 150 . 29 Guns 350 | 26 282 42 . . Cannons . | . . . . . Explosions 89 | . . 60 . 29 Melee . | . . . . . Ramming . | . . . . . Kinetic 184 | 13 141 30 . . Thermal 214 | 13 141 60 . . Explosive 89 | . . 60 . 29 Electromagnetic . | . . . . . Impact . | . . . . . Slashing . | . . . . . Piercing . | . . . . . Highest Corruption . | . . . . . Average Corruption . | . . . . . Corruption Purged . | . . . . . Corruption Blocked . | . . . . . Overload Shots . | . . . . . Overflow Damage . | . . . . . Projectiles . | . . . . . Explosions . | . . . . . Melee . | . . . . . Knockbacks . | . . . . . Impact . | . . . . . Kinetic . | . . . . . Secondary . | . . . . . Self-Inflicted Damage 23 | . . . . 23 Shots 1 | . . . . 1 Rammed . | . . . . . Targets Rammed . | . . . . . Kicked . | . . . . . Crushed . | . . . . . Highest Temperature 138 | 9 138 . . . Average Temperature 44 | 6 46 . . . Received Heat Transfer 108 | . 96 12 . . Siege Activations . | . . . . . Martial Activations . | . . . . . Shielding Activations . | . . . . . Robots Disrupted . | . . . . . Combat Hostiles . | . . . . . Robots Corrupted . | . . . . . Combat Hostiles . | . . . . . Parts Fried . | . . . . . Impact Corruptions . | . . . . . Robots Melted . | . . . . . Combat Hostiles . | . . . . . Parts Melted 3 | 1 1 1 . . Heat Transferred 655 | 111 407 137 . . Parts Sabotaged . | . . . . . Parts Stolen . | . . . . . Parts Stripped . | . . . . . Power Chain Reactions . | . . . . . Alert | -11 -10 -10 -7 -5 ------- Run | Yrd Mat Sub Scr Fac Maximum Alert Level . | . . . . . Low Security (%) 100 | 100 100 . . 100 Level 1 . | . . . . . Level 2 . | . . . . . Level 3 . | . . . . . Level 4 . | . . . . . Level 5 . | . . . . . High Security . | . . . . . Max Security . | . . . . . Peak Influence 50 | 5 50 . . 8 Initial . | . . . . . Average 5 | . 6 . . . Influence Increases 110 | 5 97 . . 8 Destroy 0b10 Robot/C 80 | . 80 . . . Destroy 0b10 Robot/NC 10 | 5 5 . . . Destroy Leader 12 | . 12 . . . Destroy Structure 8 | . . . . 8 Influence Decreases 110 | 5 97 . . 8 Time Decay 102 | 5 97 . . . Lost Part 8 | . . . . 8 Squads Dispatched 1 | . 1 . . . Investigation . | . . . . . Extermination . | . . . . . Reinforcement 1 | . 1 . . . Assault . | . . . . . Garrison . | . . . . . Intercept . | . . . . . Searches Triggered . | . . . . . Construction Impeded . | . . . . . Haulers Reinforced . | . . . . . Active Scanning Responses . | . . . . . Cargo Convoy Interrupts . | . . . . . Stealth | -11 -10 -10 -7 -5 --------- Run | Yrd Mat Sub Scr Fac Distress Signals 1 | . 1 . . . Communications Jammed . | . . . . . Distress Signals . | . . . . . Times Spotted 16 | . 9 5 . 2 Peak Tracking Total 3 | . 3 2 . 2 Tactical Retreats . | . . . . . Traps | -11 -10 -10 -7 -5 ------- Run | Yrd Mat Sub Scr Fac Traps Triggered . | . . . . . Indirectly . | . . . . . Trap Hack Attempts . | . . . . . Triggered . | . . . . . Disarmed . | . . . . . Reprogrammed . | . . . . . Reused . | . . . . . Traps Extracted . | . . . . . Installed . | . . . . . Triggered . | . . . . . Machines | -11 -10 -10 -7 -5 ---------- Run | Yrd Mat Sub Scr Fac Machines Disabled . | . . . . . Max in Single Turn . | . . . . . Machines Repaired . | . . . . . Machines Dismantled . | . . . . . Machines Sabotaged . | . . . . . Overloaded Fab Kills . | . . . . . Hacking | -11 -10 -10 -7 -5 --------- Run | Yrd Mat Sub Scr Fac Machines Accessed 4 | . 2 . 2 . Terminals 2 | . 2 . . . Fabricators . | . . . . . Repair Stations . | . . . . . Recycling Units . | . . . . . Scanalyzers . | . . . . . Garrison Access . | . . . . . Total Hacks 6 | . 3 . 3 . Successful 4 | . 1 . 3 . Failed 2 | . 2 . . . Catastrophic 1 | . 1 . . . Database Lockouts . | . . . . . Manual 2 | . 2 . . . Terminals 3 | . 3 . . . Fabricators . | . . . . . Repair Stations . | . . . . . Recycling Units . | . . . . . Scanalyzers . | . . . . . Garrison Access . | . . . . . Terminal Hacks 4 | . 1 . 3 . Record 3 | . . . 3 . Zone Layout 1 | . 1 . . . Fabricator Hacks . | . . . . . Repair Station Hacks . | . . . . . Recycling Unit Hacks . | . . . . . Scanalyzer . | . . . . . Garrison Access Hacks . | . . . . . Unauthorized Hacks . | . . . . . Terminals . | . . . . . Fabricators . | . . . . . Repair Stations . | . . . . . Recycling Units . | . . . . . Scanalyzers . | . . . . . Garrison Access . | . . . . . Data Cores Recovered . | . . . . . Used . | . . . . . Hacking Detections 1 | . 1 . . . Full Trace Events . | . . . . . Feedback Events . | . . . . . Feedback Blocked . | . . . . . Robot Schematics Acquired . | . . . . . Robots Built . | . . . . . Authchips . | . . . . . Time . | . . . . . Total Robot Build Rating . | . . . . . Part Schematics Acquired . | . . . . . Parts Built . | . . . . . Authchips . | . . . . . Time . | . . . . . Total Part Build Rating . | . . . . . Part Studies Acquired . | . . . . . Parts Repaired . | . . . . . Time . | . . . . . Parts Recycled . | . . . . . Recycled Matter . | . . . . . Retrieved Matter . | . . . . . Retrieved Components . | . . . . . Parts Scanalyzed . | . . . . . Part Schematics Acquired . | . . . . . Parts Damaged . | . . . . . Bothacking | -11 -10 -10 -7 -5 ------------ Run | Yrd Mat Sub Scr Fac Used RIF Installer . | . . . . . Robots Hacked . | . . . . . Non-combat . | . . . . . Combat . | . . . . . Robot Hacks Applied . | . . . . . Relay Couplers Released . | . . . . . Fabnet Peak Effective % . | . . . . . Robots Rewired . | . . . . . Allies Hacked . | . . . . . Hacks Repelled . | . . . . . Allies | -11 -10 -10 -7 -5 -------- Run | Yrd Mat Sub Scr Fac Total Allies . | . . . . . Largest Group . | . . . . . Highest-Rated Group . | . . . . . Highest-Rated Ally . | . . . . . Total Orders . | . . . . . Ally Attacks . | . . . . . Total Damage . | . . . . . Kills . | . . . . . Allies Corrupted . | . . . . . Allies Melted . | . . . . . Intel | -11 -10 -10 -7 -5 ------- Run | Yrd Mat Sub Scr Fac Active Infowar (turns) 1828 | 21 750 407 575 75 Seismic 1828 | 21 750 407 575 75 Robot Analysis Total . | . . . . . Derelict Logs Recovered . | . . . . . Drone Launches . | . . . . . Drone Recoveries . | . . . . . Exploration | -11 -10 -10 -7 -5 ------------- Run | Yrd Mat Sub Scr Fac Turns Passed 1893 | 86 750 407 575 75 Spaces Moved 1371 | 65 273 349 636 48 Core 4 | 4 . . . . Treads . | . . . . . Legs . | . . . . . Wheels 1367 | 61 273 349 636 48 Hover . | . . . . . Flight . | . . . . . Fastest Speed 50 | 50 90 90 90 90 Average Speed 91 | 96 94 90 90 93 Slowest Speed 115 | 100 100 90 90 115 Overloaded Moves . | . . . . . Propulsion Burnouts . | . . . . . Robots Hopped . | . . . . . Potential Cave-ins . | . . . . . Cave-ins Triggered . | . . . . . Exploration Rate (%) 25 | 4 47 24 50 1 Regions Visited 4 Branch Regions 2 Pre-discovered Areas . | . . . . . Known Exits Taken . | . . . . . Unknown Exits Taken 4 | 1 1 1 1 . Scrap Searched 1 | . . . 1 . Spaces Dug . | . . . . . Terrain Destroyed 21 | . . 17 . 4 Melee . | . . . . . Projectile . | . . . . . AOE 21 | . . 17 . 4 Terrain Rammed . | . . . . . Walls Destroyed . | . . . . . Machines Disabled . | . . . . . Actions | -11 -10 -10 -7 -5 --------- Run | Yrd Mat Sub Scr Fac Total 1924 | 82 734 394 638 76 Wait 487 | 2 432 24 2 27 Move 1367 | 64 272 348 635 48 Hop . | . . . . . Pick Up 16 | 8 6 1 1 . Fast Attach 7 | 7 . . . . Attach 2 | . 1 1 . . Detach . | . . . . . Swap 7 | . 1 6 . . Drop 5 | . 5 . . . Fire 33 | 1 17 14 . 1 Melee . | . . . . . Ram . | . . . . . Kick . | . . . . . Crush . | . . . . . Escape Stasis . | . . . . . Rewire . | . . . . . Trap . | . . . . . Miscellaneous . | . . . . . Route ------- -11/Scrapyard -10/Materials (discovered 3 exits: [*Mat] / [*Min] / [*Sub]) -10/Subcaves (discovered 2 exits: [*Mat] / *Scr) -7/Scraptown -5/Factory History --------- Turn | Location | Event 21 | -11/Scrapyard | Discovered new exit (range 16) 87 | -11/Scrapyard | Entered Materials 88 | -10/Materials | Met a group of wandering Federalists 299 | -10/Materials | Discovered new exit (range 16) 317 | -10/Materials | Build established: Mutant 385 | -10/Materials | Discovered new exit (range 13) 420 | -10/Materials | Discovered new exit (range 15) 837 | -10/Materials | Entered Subcaves 837 | -10/Subcaves | Discovered new exit (range 11) 838 | -10/Subcaves | Continued accompanying wandering Federalists (3) 838 | -10/Subcaves | Approached by a straggling Scientist 840 | -10/Subcaves | Ambushed by Subdwellers from Twisted Machinery 882 | -10/Subcaves | Ambushed by Subdwellers from Twisted Machinery 1091 | -10/Subcaves | Shifting Twisted Machinery released Barrage Gun 1091 | -10/Subcaves | Shifting Twisted Machinery released Sub. Power Source 1239 | -10/Subcaves | Shifting Twisted Machinery released Battle Rifle 1243 | -10/Subcaves | Shifting Twisted Machinery released Sub. Shrapnel Launcher 1244 | -10/Subcaves | Entered Scraptown 1389 | -7/Scraptown | Discovered new exit (range 11) 1480 | -7/Scraptown | Visited Spacefarers 1540 | -7/Scraptown | Visited CR-KLE's Repair Center 1546 | -7/Scraptown | CR-KLE repaired 5 parts 1572 | -7/Scraptown | Visited Cyclists 1594 | -7/Scraptown | Visited Fellowship of the Rings 1739 | -7/Scraptown | Visited UFD Registry 1754 | -7/Scraptown | Visited CPS Storage 1772 | -7/Scraptown | Visited Symbiants 1819 | -7/Scraptown | Entered Factory 1819 | -5/Factory | Evolved 10 slots: Power x1, Propulsion x3, Utility x6 1894 | -5/Factory | Self-destructed Last Messages --------------- parent of many of the oldest Derelicts, and no doubt many younger ones inhabiting far-flung cave systems we don't even know about yet. In the time before Cycle 3400, it circled the 0b1 area producing a wide variety of unique Derelicts, then later set off for destinations unknown. PARAMETERS=POWER+1,PROPULSION+3,UTILITY+6 LOCATION=UNKNOWN GOAL=ESCAPE Slug penetrates Wall. ALERT: All DSF locations entering lockdown mode. Slug penetrates Construction Platform. Wheel destroyed. Slug penetrates Construction Platform. Construction Platform collapses. Construction Platform disabled. Slug penetrates Construction Platform. Grenade Launcher destroyed. Slug penetrates Construction Platform. Map ----- +----------------------------------------------------+ | ?????????????????????????????????? | | ?????????????????????????????????? | | ?????????????????????????????????? | | ?????????????????????????????????? | | ?????????????????????????????????? | | ?????????????????????????????????? | | ?????????????????????????????????? | | ?????????????????????????????????? | | ?????????????????????????????????? | | ?????????????????????????????????? | | ?????????????????????????????????? | | ?????????????????????????????????? | | ?????????????????????????????????? | | ?????????????????##############??? | | ?????? ??????????# "" #??? | | ????# ?????????# ""S ! #??? | | ????# ????????# "" #??? | | ????# ????????# !! #??? | | ????# ???????# !! #??? | | ????# ######## !! #??? | | ????# # #??? | | ????# # """""" #??? | | ????# # """""""h#??? | | ????# + """""" #??? | | ????# # """ """h#??? | | ?????###+### # @ #??? | | ???????????# ######## ##??? | | ???????????# #????######???? | | ???????????# #?????????????? | | ???????????# #?????????????? | | ???????????# #?????????????? | | ???????????# #?????????????? | | ???????????####+#####????????????? | | ???????????#| #????????????? | | ???????????# """" #????????????? | | ???????????# """" #????????????? | | ???????????# """" #????????????? | | ???????????#[ """" #????????????? | | ???????????# """" #????????????? | | ???????????# """" #????????????? | | ???????????# """" #????????????? | | ???????????#! #????????????? | | ???????????##########????????????? | | ?????????????????????????????????? | | ?????????????????????????????????? | | ?????????????????????????????????? | | ?????????????????????????????????? | | ?????????????????????????????????? | | ?????????????????????????????????? | | ?????????????????????????????????? | +----------------------------------------------------+ Best States ------------- Heat Dissipation 40 Energy Generation 10 Energy Capacity 250 Matter Stores 300 Matter Capacity 300 Sight Range 16 Terrain Scan Density 10 Evasion (%) 42 Item Schematics ----------------- None Robot Schematics ------------------ None Fabricated ------------ Nothing Repaired ---------- Nothing Studied --------- None Alien Tech Used ----------------- None Achievements -------------- None Challenges ------------ None Game ------ Seed VortexTargetShielding Manual? 0 Play Time 00:19:28 Cumulative 8.8 hours Start 2026.03.05 @ 23:16:52 End 2026.03.05 @ 23:37:35 Sessions 1 Manual Loads 0 Difficulty Rogue Special Mode None Game No. 37 Rogue 37 Adventurer 0 Explorer 0 Win Type - Total 0 Types 0/0/0/0/0/0/0/0/0/0 Lore% 4 Gallery% 11 Achievement% 14 Wizard Run 0 Options --------- Layout 1 ASCII 0 Keyboard 0 Movement Numpad Keybinds 0 Fullscreen 2 Font 24/Terminus Map View 50x35 Zoom Use 0% Tactical HUD 0 Map Filters NONE Filters NONE Steam 1 RUN: ffeea9bd-3221-4220-93e5-1a960e912d6f